bitfinex/quotes_ETHUSD_20220113
["timestamp","ask_amount","ask_price","bid_price","bid_amount"]
[1642084110549,1.11845561,3386.9,3386.6,0.00546847]
[1642084111154,1.11845561,3386.9,3386.7,0.3]
[1642084111552,0.82335361,3386.9,3386.8,3.45433163]
[1642084111778,0.82335361,3386.9,3386.8,0.00433163]
[1642084112177,0.82335361,3386.9,3386.8,2.19278338]
[1642084112577,0.82335361,3386.9,3386.8,0.00433163]
[1642084112876,0.82335361,3386.9,3386.8,2.54369924]
[1642084114981,2.20744478,3386.9,3386.8,2.54369924]
[1642084115824,2.20744478,3386.9,3386.8,0.00433163]
[1642084116026,0.82335361,3386.9,3386.8,0.00433163]
[1642084116330,0.82335361,3386.9,3386.6,0.73823]
[1642084116531,0.82335361,3386.9,3386.5,0.0060369]
[1642084116729,0.82335361,3386.9,3386.7,0.00490005]
[1642084116930,0.82335361,3386.9,3386.5,0.0060369]
[1642084117731,0.82335361,3386.9,3386.6,2.53942778]
[1642084118131,0.82335361,3386.9,3386.7,0.30490005]
[1642084118531,0.82335361,3386.9,3386.8,0.00433163]
[1642084119779,0.82335361,3386.9,3386.6,0.00546847]
[1642084119979,0.82335361,3386.9,3386.5,0.0060369]
[1642084121679,0.82335361,3386.9,3386.6,1.47646]
[1642084121880,0.82335361,3386.9,3386.5,0.0060369]
[1642084122079,0.82335361,3386.9,3386.7,0.00490005]
[1642084122281,0.82335361,3386.9,3386.5,0.0060369]
[1642084123223,0.82335361,3386.9,3386.4,0.08307284]
[1642084123424,0.00170527,3386.8,3386.4,0.82134144]
[1642084123830,0.00113685,3386.7,3386.4,0.82138284]
[1642084124227,0.00170527,3386.8,3386.4,0.82138284]
[1642084124628,0.00113685,3386.7,3386.4,0.82138284]
[1642084124829,0.00113685,3386.7,3386.5,0.73827]
[1642084125030,0.00170527,3386.8,3386.5,0.73827]
[1642084125231,0.00170527,3386.8,3386.4,3.76888377]
[1642084125232,0.00170527,3386.8,3386.6,1.47658]
[1642084125529,0.00113685,3386.7,3386.4,0.82138284]
[1642084125729,0.73954685,3386.7,3386.4,0.82138284]
[1642084125929,0.73841,3386.7,3386.4,0.08307284]
[1642084130084,2.45,3386.6,3386.3,0.57150284]
[1642084130285,1.34714284,3386.4,3386.3,0.57150284]
[1642084130826,1.34714284,3386.4,3386.3,0.57263968]
[1642084131635,1.34714284,3386.4,3386.3,0.00113684]
[1642084132032,1.34714284,3386.4,3386.0,0.00284211]
[1642084132237,1.5514353,3386.1,3386.0,0.00284211]
[1642084132832,1.5514353,3386.1,3386.0,0.3]
[1642084133032,1.5514353,3386.1,3385.8,0.00397896]
[1642084133233,1.5514353,3386.1,3386.0,0.00284211]
[1642084133435,1.5514353,3386.1,3385.7,7.10848]
[1642084133436,1.5514353,3386.1,3385.8,2.54379325]
[1642084133834,1.5514353,3386.1,3385.9,0.00341054]
[1642084134305,1.5514353,3386.1,3385.9,2.55074396]
[1642084134493,1.5514353,3386.1,3385.9,2.54322483]
[1642084134791,0.49980667,3386.4,3386.0,0.00284211]
[1642084135592,0.49980667,3386.4,3386.0,2.8426564]
[1642084135796,0.49980667,3386.4,3386.1,0.7383251]
[1642084135997,0.00170527,3386.8,3386.2,2.69366165]
[1642084136298,0.00113685,3386.7,3386.4,0.73817]
[1642084136600,0.00454739,3387.3,3386.5,0.6]
[1642084136800,1.1180675,3387.2,3386.8,1.14910539]
[1642084136999,1.1180675,3387.2,3386.8,0.3]
[1642084137000,1.12204647,3387.2,3386.8,0.3]
[1642084137200,0.49980667,3387.0,3386.8,0.3]
[1642084137600,0.0022737,3386.9,3386.8,0.3]
[1642084137801,0.0022737,3386.9,3386.7,1.47635]
[1642084138225,0.00170527,3386.8,3386.7,1.47635]
[1642084138425,0.00170527,3386.8,3386.6,3.27812429]
[1642084138724,0.00113685,3386.7,3386.6,2.53981429]
[1642084139128,0.00480129,3386.6,3386.4,0.3]
[1642084139525,0.00113685,3386.7,3386.4,1.4383396]
[1642084139926,0.00113685,3386.7,3386.4,2.1766596]
[1642084140127,0.00113685,3386.7,3386.4,0.73832]
[1642084140326,0.00113685,3386.7,3386.3,2.9530349]
[1642084140726,0.00113685,3386.7,3386.4,0.7383028]
[1642084140927,0.00113685,3386.7,3386.4,1.4766028]
[1642084141787,0.00113685,3386.7,3386.4,2.2149028]
[1642084141983,0.00113685,3386.7,3386.5,0.3]
[1642084142181,0.00113685,3386.7,3386.5,1.15410158]
[1642084142784,0.00113685,3386.7,3386.4,2.2149028]
[1642084142983,0.00113685,3386.7,3386.4,0.7383028]
[1642084143985,0.00113685,3386.7,3386.4,2.04431228]
[1642084144186,0.00113685,3386.7,3386.4,3.52093228]
[1642084144786,0.00113685,3386.7,3386.5,1.3]
[1642084144987,0.00113685,3386.7,3386.5,2.0382831]
[1642084147035,0.00113685,3386.7,3386.6,4.45]
[1642084147238,0.00113685,3386.7,3386.6,6.55175336]
[1642084147434,0.00113685,3386.7,3386.6,5.45]
[1642084147635,0.00113685,3386.7,3386.6,5.81907]
[1642084148537,0.00113685,3386.7,3386.6,7.25794527]
[1642084148737,3.7929,3387.4,3386.7,3.1]
[1642084148940,3.7929,3387.4,3386.6,3.10794527]
[1642084148941,3.7929,3387.4,3387.1,0.73814]
[1642084149142,1.39512804,3387.7,3386.8,1.47627]
[1642084149143,1.12876103,3387.3,3386.8,1.47627]
[1642084149379,1.12876103,3387.3,3387.0,0.3]
[1642084149577,0.00284212,3387.2,3386.6,1.43887527]
[1642084149977,0.7405637,3387.1,3386.5,2.87917527]
[1642084150176,0.7405637,3387.1,3386.5,4.17917527]
[1642084150385,1.25277977,3386.6,3386.5,3.03887527]
[1642084150580,1.25277977,3386.6,3386.5,1.43887527]
[1642084150781,1.25277977,3386.6,3386.5,1.44001212]
[1642084150981,1.25277977,3386.6,3386.5,2.04001212]
[1642084151182,0.00170527,3387.0,3386.5,0.60113685]
[1642084151385,0.00170527,3387.0,3386.7,0.7382605]
[1642084151582,0.49980667,3387.4,3386.8,0.3]
[1642084151583,0.00113685,3386.9,3386.8,0.3]
[1642084153032,0.00113685,3386.9,3386.7,2.2147505]
[1642084153033,0.00113685,3386.9,3386.7,0.7382605]
[1642084153234,0.00113685,3386.9,3386.7,1.4765205]
[1642084153433,0.00113685,3386.9,3386.7,0.7382605]
[1642084154536,0.00113685,3386.9,3386.8,2.5395518]
[1642084155646,0.00113685,3386.9,3386.8,4.05689492]
[1642084155850,0.00113685,3386.9,3386.8,5.35689492]
[1642084156249,0.00113685,3386.9,3386.8,6.50349492]
[1642084157588,0.00113685,3386.9,3386.8,5.35689492]
[1642084160939,0.00113685,3386.9,3386.8,4.1395518]
[1642084162148,0.00113685,3386.9,3386.8,2.5395518]
[1642084163148,0.73946685,3386.9,3386.8,2.5395518]
[1642084163847,0.73946685,3386.9,3386.7,2.5395518]
[1642084164478,0.49980667,3386.8,3386.7,2.5395518]
[1642084165078,1.71090874,3386.8,3386.7,2.5395518]
[1642084165283,0.49980667,3386.8,3386.7,2.5395518]
[1642084165478,0.73946685,3386.9,3386.7,2.5395518]
[1642084167087,1.10406364,3386.8,3386.7,2.5395518]
[1642084167788,1.10406364,3386.8,3386.6,9.0]
[1642084168032,0.73838,3386.7,3386.6,9.0]
[1642084169535,0.73838,3386.7,3386.6,11.53991575]
[1642084171439,0.50094352,3386.9,3386.6,11.53991575]
[1642084171801,0.00113685,3386.9,3386.6,11.53991575]
[1642084172597,0.00113685,3386.9,3386.8,1.56441477]
[1642084173399,0.73945685,3386.9,3386.7,2.53991575]
[1642084173997,0.73945685,3386.9,3386.8,2.53991575]
[1642084174401,0.68945685,3386.9,3386.8,2.53991575]
[1642084177354,0.68945685,3386.9,3386.7,1.0383229]
[1642084177553,0.68945685,3386.9,3386.7,0.7383229]
[1642084178357,0.68945685,3386.9,3386.8,2.53987613]
[1642084180791,0.68627057,3386.9,3386.8,2.53987613]
[1642084181390,2.11854282,3386.9,3386.8,2.53987613]
[1642084181590,0.68627057,3386.9,3386.8,2.53987613]
[1642084181990,0.15012387,3386.8,3386.6,18.0]
[1642084182190,1.13196261,3386.7,3386.6,18.0]
[1642084182391,1.87034261,3386.7,3386.6,18.0]
[1642084182796,1.87034261,3386.7,3386.6,18.3]
[1642084183039,1.87034261,3386.7,3386.6,18.0]
[1642084183643,3.23987949,3386.7,3386.6,18.0]
[1642084184241,3.23987949,3386.7,3386.6,17.50019333]
[1642084185447,3.23987949,3386.7,3386.6,17.00046653]
[1642084186544,3.23987949,3386.7,3386.6,16.76182631]
[1642084187192,3.23987949,3386.7,3386.6,16.50073972]
[1642084187795,3.23987949,3386.7,3386.6,16.00101292]
[1642084188193,3.23987949,3386.7,3386.6,15.7623727]
[1642084188793,3.23987949,3386.7,3386.6,15.50128997]
[1642084189295,3.27413921,3386.7,3386.6,15.50128997]
[1642084189692,3.23987949,3386.7,3386.6,15.50128997]
[1642084191736,6.12867604,3386.7,3386.6,15.50128997]
[1642084192139,3.66487949,3386.7,3386.6,15.50128997]
[1642084193939,6.10620823,3386.7,3386.6,15.50128997]
[1642084194386,3.66487949,3386.7,3386.6,15.50128997]
[1642084194787,6.11479383,3386.7,3386.6,15.50128997]
[1642084195187,3.66487949,3386.7,3386.6,15.50128997]
[1642084195391,23.53265136,3386.7,3386.6,15.50128997]
[1642084195787,21.03487949,3386.7,3386.6,15.50128997]
[1642084197495,21.03487949,3386.7,3386.6,15.3511661]
[1642084199546,3.66487949,3386.7,3386.6,15.3511661]
[1642084199747,3.66487949,3386.7,3386.6,14.85145355]
[1642084200147,3.66487949,3386.7,3386.6,14.55607621]
[1642084200550,0.710329,3386.7,3386.6,14.55607621]
[1642084200852,4.83170001,3388.1,3386.7,0.73828]
[1642084201054,3.9625,3388.1,3386.8,2.37211172]
[1642084201451,4.4012,3388.6,3387.2,0.36901]
[1642084201650,0.43631611,3389.1,3388.3,1.10508702]
[1642084201651,0.27813045,3388.5,3388.3,1.10508702]
[1642084201893,0.27813045,3388.5,3388.3,3.19899702]
[1642084202094,1.50922973,3389.3,3388.3,3.49899702]
[1642084202296,0.77074868,3390.7,3388.3,3.49899702]
[1642084202297,0.01255254,3390.6,3388.4,2.40061996]
[1642084202495,0.29525525,3389.2,3388.4,2.40061996]
[1642084202697,0.29525525,3389.2,3389.1,4.50925885]
[1642084202899,0.44736879,3390.2,3389.1,5.10925885]
[1642084203095,8.30394413,3390.7,3389.2,2.37211172]
[1642084203096,7.53319545,3390.7,3389.2,2.37211172]
[1642084203295,0.49977354,3390.4,3389.2,3.37211172]
[1642084203796,0.49977354,3390.4,3389.5,2.2129968]
[1642084203997,1.32101042,3390.1,3389.7,1.46505554]
[1642084204196,0.49977354,3390.4,3389.7,1.46505554]
[1642084204496,7.53319545,3390.7,3389.7,1.76505554]
[1642084204696,7.53319545,3390.7,3389.7,5.13716726]
[1642084204697,0.49977354,3390.6,3389.7,5.13716726]
[1642084204896,0.49977354,3390.6,3389.7,7.34978066]
[1642084205096,7.53319545,3390.7,3390.0,0.00825489]
[1642084205295,7.53319545,3390.7,3389.9,0.3]
[1642084205536,1.87119875,3391.1,3389.8,1.3]
[1642084205735,1.87119875,3391.1,3389.8,0.3]
[1642084205937,0.49977354,3391.1,3389.8,1.3]
[1642084206136,2.37211172,3391.2,3389.8,1.3]
[1642084206337,1.50875203,3390.3,3390.1,1.474801]
[1642084206539,1.50875203,3390.3,3390.1,0.3]
[1642084206939,1.50875203,3390.3,3389.8,0.3]
[1642084207143,2.80325438,3390.3,3389.6,0.3]
[1642084207342,2.80325438,3390.3,3389.5,1.0]
[1642084207541,2.80325438,3390.3,3389.5,0.6]
[1642084207742,0.01875797,3390.2,3389.5,0.3]
[1642084207943,0.01875797,3390.2,3389.7,0.7375911]
[1642084208142,2.80325438,3390.3,3389.2,1.01223385]
[1642084208143,0.01818955,3390.1,3389.2,0.01223385]
[1642084208344,0.01818955,3390.1,3389.4,0.3]
[1642084208542,0.01762113,3390.0,3389.1,3.07524]
[1642084208741,0.01762113,3390.0,3389.1,2.07524]
[1642084208941,0.0170527,3389.9,3389.2,1.0]
[1642084209147,1.27310477,3389.5,3389.2,1.4752731]
[1642084209390,0.01648428,3389.8,3389.7,0.04083553]
[1642084209591,1.29450235,3390.3,3389.7,0.04083553]
[1642084209788,0.01648428,3389.8,3389.7,0.04083553]
[1642084210393,1.46764437,3389.8,3389.7,0.04083553]
[1642084210596,0.01648428,3389.8,3389.7,0.04083553]
[1642084210794,0.01648428,3389.8,3389.7,0.34083553]
[1642084211799,4.96648428,3389.8,3389.7,0.04083553]
[1642084212194,2.90893801,3389.7,3389.6,0.04074431]
[1642084212494,0.45893801,3389.7,3389.6,0.04074431]
[1642084212695,0.01591586,3389.7,3389.6,0.04074431]
[1642084213736,1.64746219,3389.7,3389.6,0.04074431]
[1642084213938,11.18814093,3389.7,3389.6,0.04074431]
[1642084214137,11.18814093,3389.7,3389.5,0.0523493]
[1642084214138,7.30920694,3389.6,3389.5,0.0523493]
[1642084214339,10.28327054,3389.6,3389.5,0.0523493]
[1642084214537,10.29861797,3389.6,3389.5,0.0523493]
[1642084214736,7.58801,3389.5,3388.3,7.2045]
[1642084214943,7.58801,3389.5,3387.6,6.262159]
[1642084214944,0.425,3389.4,3387.6,6.262159]
[1642084215145,1.27753022,3388.1,3387.6,8.6719]
[1642084215344,1.27753022,3388.1,3387.0,0.01224578]
[1642084215549,0.00625266,3388.0,3387.0,0.01224578]
[1642084215944,0.00568423,3387.9,3387.0,0.01224578]
[1642084216145,1.27470103,3387.5,3387.1,1.15224932]
[1642084216345,1.77746314,3388.1,3387.3,1.4761881]
[1642084216346,0.00511581,3387.8,3387.3,1.4761881]
[1642084216545,0.00284212,3387.4,3387.3,1.7761881]
[1642084216811,0.00454739,3387.7,3387.3,2.0761881]
[1642084217005,0.00284212,3387.4,3387.3,2.0761881]
[1642084217204,0.00397896,3387.6,3387.3,0.6]
[1642084217405,0.00284212,3387.4,3387.3,0.6]
[1642084217603,0.49993292,3388.1,3387.3,0.3]
[1642084217604,0.00341054,3387.5,3387.3,0.3]
[1642084217805,0.00284212,3387.4,3387.2,1.4762548]
[1642084218010,0.00284212,3387.4,3386.2,4.7766]
[1642084218210,1.37003932,3387.0,3386.6,1.53137442]
[1642084218411,0.00227369,3387.3,3386.6,3.00783712]
[1642084218808,0.00170527,3387.2,3386.6,3.00783712]
[1642084219107,0.92493292,3387.4,3386.6,3.00783712]
[1642084219108,0.00113685,3387.1,3386.6,3.00783712]
[1642084219512,1.24227345,3387.1,3386.6,3.00783712]
[1642084220310,0.00227369,3387.3,3386.6,3.30783712]
[1642084220743,0.00170527,3387.2,3386.7,0.3]
[1642084221143,1.11040914,3387.7,3386.7,4.61902298]
[1642084221144,0.00113685,3387.1,3386.7,4.61902298]
[1642084221343,0.49993292,3387.7,3387.4,1.32816485]
[1642084221745,0.00284211,3387.6,3387.4,1.62816485]
[1642084222050,0.425,3388.2,3387.5,6.85]
[1642084222246,0.425,3389.1,3387.7,0.73797]
[1642084222444,0.425,3389.1,3388.2,0.01299574]
[1642084222645,0.425,3389.1,3387.8,3.51879301]
[1642084222844,0.425,3389.1,3387.8,0.3]
[1642084223043,0.425,3389.1,3387.7,0.33345532]
[1642084223242,0.425,3389.1,3387.6,5.8971]
[1642084223243,1.46565334,3388.7,3388.3,1.27035326]
[1642084223442,1.46565334,3388.7,3388.6,0.7379513]
[1642084223845,0.425,3389.1,3388.6,1.0379513]
[1642084224043,0.425,3389.1,3388.6,0.7379513]
[1642084224287,0.0073895,3388.8,3388.7,0.3]
[1642084224488,0.0073895,3388.8,3388.6,0.7379513]
[1642084224892,1.086946,3388.7,3388.5,1.4757681]
[1642084225091,1.28063867,3388.7,3388.5,1.4757681]
[1642084225692,0.49997049,3388.9,3388.6,0.01532935]
[1642084225892,0.49997049,3388.9,3388.5,1.4757681]
[1642084226191,0.00113685,3388.9,3388.5,1.4757681]
[1642084226594,0.00113685,3388.9,3388.4,0.7378686]
[1642084226793,1.45379753,3388.8,3388.4,0.7378686]
[1642084226991,1.45379753,3388.8,3388.5,0.00113685]
[1642084227396,0.425,3388.7,3388.5,0.00113685]
[1642084227595,0.425,3388.7,3388.2,0.00284212]
[1642084227596,2.99499349,3388.7,3388.2,0.00284212]
[1642084227797,2.61164966,3388.6,3387.9,0.00454739]
[1642084228063,0.73813,3388.3,3387.6,0.00625266]
[1642084228256,1.9632204,3388.2,3387.3,0.00795793]
[1642084228457,1.9632204,3388.2,3387.4,0.7381632]
[1642084228458,0.425,3388.2,3387.4,0.7381632]
[1642084228857,0.425,3388.2,3387.5,0.00682108]
[1642084229259,0.425,3388.2,3387.4,0.0073895]
[1642084229462,1.22873604,3387.5,3387.4,0.0073895]
[1642084229659,1.22873604,3387.5,3387.4,0.7454483]
[1642084230059,1.22873604,3387.5,3387.4,1.7454483]
[1642084230261,1.22873604,3387.5,3387.4,0.7454483]
[1642084230463,1.22873604,3387.5,3387.4,1.7454483]
[1642084232106,1.22456505,3387.5,3387.4,1.7454483]
[1642084232607,0.49997049,3388.2,3387.4,0.7454483]
[1642084232811,0.49997049,3388.2,3387.8,0.7379903]
[1642084233007,1.16413685,3388.9,3387.8,1.0379903]
[1642084233207,1.16413685,3388.9,3387.9,0.00454739]
[1642084233409,0.49997049,3388.7,3387.9,0.00454739]
[1642084233810,0.42613685,3388.9,3388.1,3.53581898]
[1642084234013,0.00113685,3388.9,3388.3,0.3]
[1642084234412,0.00113685,3388.9,3388.4,0.00170527]
[1642084234814,0.00113685,3388.9,3388.5,0.7378]
[1642084235015,0.00113685,3388.9,3388.6,2.14948607]
[1642084235213,0.00113685,3388.9,3388.7,2.2129334]
[1642084235646,4.32878947,3390.2,3388.8,6.85]
[1642084235848,4.2832,3390.2,3388.7,3.2129334]
[1642084236048,0.00568423,3389.9,3389.4,0.3]
[1642084236449,0.00511581,3389.8,3388.8,1.0]
[1642084236650,0.00511581,3389.8,3389.0,0.3]
[1642084236847,0.425,3390.2,3389.0,0.3]
[1642084236848,1.47566718,3389.4,3389.0,0.3]
[1642084237048,0.00454739,3389.7,3389.0,0.3]
[1642084237249,0.00227369,3389.3,3389.0,1.7754514]
[1642084237448,0.00397896,3389.6,3389.1,0.3]
[1642084237653,0.00170527,3389.2,3389.1,0.3]
[1642084237849,1.25431877,3389.4,3389.1,0.3]
[1642084238048,0.00170527,3389.2,3389.1,0.3]
[1642084238249,0.00227369,3389.3,3389.1,0.3]
[1642084238451,1.41216574,3389.2,3389.1,0.3]
[1642084238651,1.41216574,3389.2,3389.0,0.3]
[1642084238850,1.16216574,3389.2,3389.0,0.3]
[1642084239050,0.00113684,3389.1,3389.0,0.3]
[1642084239898,0.42613684,3389.1,3388.4,0.00170527]
[1642084240098,0.49997049,3389.0,3388.4,0.00170527]
[1642084240300,0.49997049,3389.0,3388.3,0.00341054]
[1642084240301,0.425,3388.9,3388.3,0.00341054]
[1642084240496,1.22222897,3388.8,3388.3,0.00341054]
[1642084240700,1.53927838,3388.0,3387.9,0.00568424]
[1642084240898,1.96427838,3388.0,3387.9,0.00568424]
[1642084241301,1.96427838,3388.0,3387.7,0.00682108]
[1642084241497,1.96427838,3388.0,3387.4,0.00852635]
[1642084241701,1.19118878,3387.9,3387.4,0.00852635]
[1642084242302,0.49997049,3387.7,3387.4,0.7381517]
[1642084242704,0.00113684,3387.6,3387.4,0.7381517]
[1642084243439,0.00113684,3387.6,3387.4,0.6791517]
[1642084243940,1.14232562,3387.9,3387.4,0.6791517]
[1642084244140,1.14232562,3387.9,3387.5,0.7381123]
[1642084244341,0.00113685,3387.8,3387.5,0.7381123]
[1642084244740,1.09346247,3387.9,3387.6,0.01398296]
[1642084244940,1.09346247,3387.9,3387.6,0.01511981]
[1642084245139,1.09346247,3387.9,3387.6,0.00113685]
[1642084245739,1.09346247,3387.9,3387.7,2.53911366]
[1642084246542,1.09346247,3387.9,3387.6,2.54025051]
[1642084246798,0.49997049,3388.3,3387.9,0.7379555]
[1642084246991,0.49997049,3388.3,3388.0,0.00335545]
[1642084247191,2.3078,3390.2,3387.8,4.2134175]
[1642084247192,0.00227369,3388.2,3387.8,4.2134175]
[1642084247391,0.00227369,3388.2,3387.9,1.0]
[1642084247590,0.425,3389.3,3387.9,1.0]
[1642084247591,0.00170527,3388.1,3387.9,1.0]
[1642084247790,1.49108526,3388.5,3388.0,7.2527311]
[1642084247993,1.49108526,3388.5,3388.1,1.4757]
[1642084248195,1.49108526,3388.5,3388.2,0.7378315]
[1642084248992,1.49108526,3388.5,3388.3,0.3]
[1642084249193,1.49108526,3388.5,3388.2,0.7378315]
[1642084249392,2.64430853,3388.5,3388.2,0.7378315]
[1642084249794,2.64430853,3388.5,3388.3,2.53911366]
[1642084251044,5.325,3388.4,3388.3,2.53911366]
[1642084251645,5.325,3388.4,3387.6,0.00113685]
[1642084251847,0.00509875,3388.2,3387.7,0.7381034]
[1642084252048,0.425,3388.2,3387.7,0.7381034]
[1642084252249,0.425,3388.2,3387.8,0.00170527]
[1642084252650,0.92497049,3388.2,3387.8,0.00170527]
[1642084252849,0.92497049,3388.2,3387.5,2.54245666]
[1642084253051,2.19476,3388.2,3387.6,0.00284212]
[1642084253254,1.5049972,3388.1,3387.6,0.00284212]
[1642084253454,0.92497049,3388.0,3387.6,0.00284212]
[1642084253649,1.4002866,3387.9,3387.6,0.00284212]
[1642084253850,0.425,3387.8,3387.6,0.00284212]
[1642084254346,0.425,3387.8,3387.4,0.00397896]
[1642084254628,1.3510378,3387.5,3387.4,0.00397896]
[1642084255828,0.425,3387.8,3387.2,0.00511581]
[1642084255829,0.01264762,3387.4,3387.2,0.00511581]
[1642084256034,0.425,3387.8,3387.2,2.12857937]
[1642084256429,0.425,3387.8,3387.3,0.00454739]
[1642084256628,0.425,3387.8,3387.4,0.7380824]
[1642084256834,0.425,3387.8,3387.5,2.09258358]
[1642084257032,0.425,3387.8,3387.5,0.00341054]
[1642084257236,0.425,3387.8,3387.6,0.00284212]
[1642084257435,0.425,3387.8,3387.5,2.24624068]
[1642084257637,4.47070734,3388.3,3387.7,0.03514173]
[1642084257836,0.50110734,3388.3,3387.9,0.7378377]
[1642084258036,0.00113685,3388.3,3388.0,2.52204008]
[1642084258439,0.00113685,3388.3,3388.1,1.0]
[1642084258643,1.21026005,3388.2,3388.1,2.7758256]
[1642084258839,1.21026005,3388.2,3388.1,1.4758256]
[1642084259042,1.21026005,3388.2,3387.8,1.47735527]
[1642084259043,1.21026005,3388.2,3387.8,0.00170527]
[1642084259440,1.21026005,3388.2,3387.6,0.00284212]
[1642084260243,1.21026005,3388.2,3387.8,1.4759785]
[1642084260643,1.21026005,3388.2,3387.9,0.00113685]
[1642084260644,2.4926447,3388.2,3387.9,0.00113685]
[1642084260942,2.4926447,3388.2,3387.5,0.7381311]
[1642084261147,0.425,3388.1,3387.4,0.00397896]
[1642084261347,0.00355903,3388.0,3387.6,0.00284212]
[1642084261544,0.425,3387.9,3387.3,0.00454739]
[1642084261795,0.425,3387.9,3387.0,7.51618936]
[1642084261796,5.737,3387.9,3387.1,0.00568423]
[1642084261998,1.44518885,3387.2,3387.1,0.00568423]
[1642084262197,1.87018885,3387.2,3387.1,0.00568423]
[1642084262397,3.37891423,3387.2,3387.1,0.00568423]
[1642084262999,3.87888472,3387.2,3386.7,0.00795793]
[1642084263199,3.87888472,3387.2,3386.4,0.0096632]
[1642084263805,1.20574788,3386.5,3386.4,0.0096632]
[1642084264000,0.425,3387.0,3386.6,0.7383371]
[1642084264400,0.425,3387.0,3386.7,0.00795793]
[1642084264800,0.425,3387.0,3386.5,0.00909478]
[1642084264999,0.425,3387.0,3386.3,2.7766168]
[1642084265000,0.425,3387.0,3386.4,0.0096632]
[1642084265200,1.03361583,3386.9,3386.4,0.0096632]
[1642084265862,1.18942016,3386.6,3386.4,0.0096632]
[1642084266476,1.18942016,3386.6,3386.2,0.23081047]
[1642084266477,1.18942016,3386.6,3386.3,0.01023162]
[1642084267271,1.03361583,3386.9,3386.3,0.01023162]
[1642084268171,1.47053137,3386.8,3386.3,0.01023162]
[1642084268370,0.425,3386.7,3386.3,0.01023162]
[1642084268573,0.49997049,3386.5,3386.1,0.01136847]
[1642084268775,0.49997049,3386.5,3386.0,0.01193689]
[1642084269075,1.12238185,3386.3,3386.0,0.01193689]
[1642084269295,1.12238185,3386.3,3386.0,0.75031689]
[1642084269696,1.12238185,3386.3,3386.1,0.01136847]
[1642084271102,1.12238185,3386.3,3386.2,2.53985633]
[1642084271499,1.12238185,3386.3,3386.2,2.55065638]
[1642084272904,0.425,3386.7,3386.2,2.55065638]
[1642084273146,0.49997049,3387.0,3386.2,2.85065638]
[1642084273341,0.49997049,3387.0,3386.5,0.7382]
[1642084273541,3.8031,3387.8,3386.5,0.7382]
[1642084273740,3.8031,3387.8,3386.6,0.00852635]
[1642084273942,1.41943522,3386.7,3386.6,0.00852635]
[1642084274349,1.41943522,3386.7,3386.4,0.3096632]
[1642084274544,1.41943522,3386.7,3386.5,0.00909478]
[1642084274943,1.41943522,3386.7,3386.4,0.0096632]
[1642084275145,1.41943522,3386.7,3386.6,2.53985633]
[1642084275544,1.41943522,3386.7,3386.6,2.54838268]
[1642084275946,1.41943522,3386.7,3386.6,0.00852635]
[1642084276999,1.41943522,3386.7,3386.6,2.54838268]
[1642084279198,0.73827,3387.6,3386.6,2.54838268]
[1642084279399,3.8031,3387.8,3386.7,0.32896584]
[1642084279600,3.8031,3387.8,3387.3,0.369]
[1642084279800,0.49997049,3387.9,3387.4,0.00773647]
[1642084279997,0.00113685,3388.3,3387.5,0.73798]
[1642084280300,1.45304947,3387.6,3387.5,0.73798]
[1642084280752,1.45304947,3387.6,3387.5,0.74139054]
[1642084281354,0.00113685,3388.3,3387.5,1.34139054]
[1642084281554,0.00113685,3388.3,3387.8,0.73789]
[1642084281953,4.0506,3389.4,3387.9,0.30113685]
[1642084282156,4.0506,3389.4,3387.9,3.09877133]
[1642084282352,0.00227369,3388.5,3388.0,5.2877]
[1642084282553,0.00227369,3388.5,3388.4,1.47541]
[1642084282755,1.39999639,3388.6,3388.4,2.14429]
[1642084282952,1.39999639,3388.6,3388.4,0.6]
[1642084283153,1.39999639,3388.6,3388.4,0.3]
[1642084283353,1.39999639,3388.6,3388.3,0.3]
[1642084283554,1.39999639,3388.6,3388.1,1.6]
[1642084283853,1.39999639,3388.6,3388.1,1.0]
[1642084284055,1.39999639,3388.6,3388.1,1.7756863]
[1642084284494,1.39999639,3388.6,3388.1,2.7756863]
[1642084284895,1.39999639,3388.6,3388.1,3.0756863]
[1642084285097,1.39999639,3388.6,3388.2,2.53859119]
[1642084285297,1.39999639,3388.6,3388.2,4.38311489]
[1642084285494,1.39999639,3388.6,3388.3,1.3]
[1642084285695,4.0506,3389.4,3388.3,2.03777]
[1642084285895,3.6256,3389.4,3388.3,1.9769]
[1642084286098,0.00682108,3389.3,3388.3,1.9769]
[1642084286297,0.00682108,3389.3,3388.4,3.1944822]
[1642084286496,0.00625266,3389.2,3388.6,0.3]
[1642084286695,1.17131242,3389.2,3388.9,0.73758]
[1642084286899,0.00568423,3389.1,3389.0,2.23655232]
[1642084287102,0.00568423,3389.1,3389.0,4.58655232]
[1642084287304,0.00568423,3389.1,3389.0,5.58655232]
[1642084288065,0.00568423,3389.1,3389.0,3.23655232]
[1642084288462,0.00568423,3389.1,3389.0,4.77514351]
[1642084288660,0.00568423,3389.1,3389.0,6.07514351]
[1642084291462,0.00568423,3389.1,3389.0,3.53655232]
[1642084291898,0.00568423,3389.1,3389.0,3.23655232]
[1642084292898,0.00568423,3389.1,3389.0,3.53655232]
[1642084293098,0.00568423,3389.1,3389.0,6.07441118]
[1642084293300,3.9097,3390.2,3389.2,0.3688]
[1642084293498,3.9097,3390.2,3389.3,2.37889727]
[1642084293701,1.26454328,3390.1,3389.7,1.45866906]
[1642084293901,1.26454328,3390.1,3389.3,2.36498644]
[1642084294099,0.00511582,3390.0,3389.3,3.36498644]
[1642084294301,0.00511582,3390.0,3389.4,0.737523]
[1642084294502,0.00454739,3389.9,3389.5,2.69059585]
[1642084294704,0.00454739,3389.9,3389.6,6.1561]
[1642084294902,0.00397897,3389.8,3389.7,2.64304107]
[1642084295103,0.00397897,3389.8,3389.7,9.44304107]
[1642084295302,3.72367897,3391.1,3389.8,5.5]
[1642084295563,3.72367897,3391.1,3389.9,3.48042327]
[1642084295564,1.35930812,3390.4,3389.9,3.48042327]
[1642084295749,1.35930812,3390.4,3390.0,0.7373723]
[1642084295948,0.00284212,3390.3,3390.1,2.35222234]
[1642084296351,0.00227369,3390.2,3390.1,3.72092234]
[1642084296549,0.00227369,3390.2,3390.1,1.3687]
[1642084296749,0.00284212,3390.2,3390.1,3.71585896]
[1642084296953,0.00284212,3390.2,3390.1,7.2187]
[1642084297153,0.00284212,3390.2,3390.1,10.56585896]
[1642084297355,0.00284212,3390.2,3390.1,8.5187]
[1642084297558,0.00284212,3390.2,3390.1,12.13080368]
[1642084297758,0.00284212,3390.2,3390.1,12.43080368]
[1642084297955,0.00284212,3390.2,3390.1,10.08364472]
[1642084298158,0.00284212,3390.2,3390.1,12.62077851]
[1642084298357,0.00284212,3390.2,3390.1,12.32077851]